fUSD/lending_fUSD_20250105
["ID","MTS","AMOUNT","RATE_DAILY","PERIOD"]
[347714730,1736077871426,-500.0,9.589e-05,2]
[347714731,1736077871436,-500.0,9.589e-05,2]
[347714732,1736077871446,-500.0,9.589e-05,2]
[347714733,1736077871456,-500.0,9.589e-05,2]
[347714734,1736077871467,-500.0,9.589e-05,2]
[347714735,1736077871479,-519.71,9.589e-05,2]
[347714736,1736077871489,-500.0,9.589e-05,2]
[347714737,1736077871499,-500.0,9.589e-05,2]
[347714738,1736077871510,-732.34,9.589e-05,2]
[347714739,1736077871520,-707.82,9.589e-05,2]
[347714740,1736077871530,-740.06,9.589e-05,2]
[347714741,1736077871539,-2098.99,9.589e-05,2]
[347714742,1736077871550,-500.0,9.589e-05,2]
[347714743,1736077871560,-796.45,9.589e-05,2]
[347714744,1736077871570,-6012.7,9.589e-05,2]
[347714745,1736077871580,-500.0,9.589e-05,2]
[347714746,1736077871590,-500.0,9.589e-05,2]
[347714747,1736077871600,-853.48,9.589e-05,2]
[347714748,1736077871609,-5593.14,9.589e-05,2]
[347714749,1736077871619,-2047.77,9.589e-05,2]
[347714750,1736077871628,-434.05,9.589e-05,2]
[347714751,1736077871638,-964.08,9.589e-05,2]
[347714752,1736077871648,-933.81,9.589e-05,2]
[347714753,1736077871658,-500.0,9.589e-05,2]
[347714754,1736077871668,-702.7,9.589e-05,2]
[347714755,1736077871678,-700.64,9.589e-05,2]
[347714756,1736077871688,-789.92,9.589e-05,2]
[347714757,1736077871698,-500.0,9.589e-05,2]
[347714758,1736077871708,-1141.75,9.589e-05,2]
[347714759,1736077871717,-500.0,9.589e-05,2]
[347714760,1736077871727,-500.0,9.589e-05,2]
[347714761,1736077871737,-500.0,9.589e-05,2]
[347714762,1736077871747,-500.0,9.589e-05,2]
[347714763,1736077871757,-861.87,9.589e-05,2]
[347714764,1736077871767,-621.86,9.589e-05,2]
[347714765,1736077871777,-675.19,9.589e-05,2]
[347714766,1736077871787,-3575.88,9.589e-05,2]
[347714767,1736077871796,-631.93,9.589e-05,2]
[347714768,1736077871806,-1451.45,9.589e-05,2]
[347714769,1736077871816,-1044.61,9.589e-05,2]
[347714770,1736077871826,-500.0,9.589e-05,2]
[347714771,1736077871836,-796.85,9.589e-05,2]
[347714772,1736077871846,-891.67,9.589e-05,2]
[347714773,1736077871855,-558.0,9.589e-05,2]
[347714774,1736077871865,-500.0,9.589e-05,2]
[347714775,1736077871875,-553.01,9.589e-05,2]
[347714776,1736077871885,-2422.63,9.589e-05,2]
[347714777,1736077871895,-1153.73,9.589e-05,2]
[347714778,1736077871905,-1238.51,9.589e-05,2]
[347714779,1736077871915,-882.11,9.589e-05,2]
[347714780,1736077871924,-211.13,9.589e-05,2]
[347714781,1736077871934,-500.0,9.589e-05,2]
[347714782,1736077871944,-936.55,9.589e-05,2]
[347714783,1736077871954,-4094.6,9.589e-05,2]
[347714784,1736077871964,-598.63,9.589e-05,2]
[347714785,1736077871974,-1565.14,9.589e-05,2]
[347714786,1736077871984,-1545.81,9.589e-05,2]
[347714787,1736077871994,-5467.77,9.589e-05,2]
[347714788,1736077872003,-500.0,9.589e-05,2]
[347714789,1736077872013,-500.0,9.589e-05,2]
[347714790,1736077872022,-500.0,9.589e-05,2]
[347714791,1736077872032,-4960.26,9.589e-05,2]
[347714792,1736077872043,-500.0,9.589e-05,2]
[347714793,1736077872052,-920.55,9.589e-05,2]
[347714794,1736077872062,-500.0,9.589e-05,2]
[347714795,1736077872072,-1172.65244,9.589e-05,2]
[347714796,1736077872082,-500.0,9.589e-05,2]
[347714797,1736077872091,-861.97,9.589e-05,2]
[347714798,1736077872102,-1676.16,9.589e-05,2]
[347714799,1736077872112,-1506.56,9.589e-05,2]
[347714800,1736077872122,-544.29,9.589e-05,2]
[347714801,1736077872132,-500.0,9.589e-05,2]
[347714802,1736077872142,-5003.34,9.589e-05,2]
[347714803,1736077872152,-500.0,9.589e-05,2]
[347714804,1736077872162,-500.0,9.589e-05,2]
[347714805,1736077872172,-5455.76,9.589e-05,2]
[347714806,1736077872184,-500.0,9.589e-05,2]
[347714807,1736077872194,-736.71,9.589e-05,2]
[347714808,1736077872204,-500.0,9.589e-05,2]
[347714809,1736077872214,-500.13,9.589e-05,2]
[347714810,1736077872225,-4518.67,9.589e-05,2]
[347714811,1736077872235,-500.0,9.589e-05,2]
[347714812,1736077872246,-1188.36,9.589e-05,2]
[347714813,1736077872256,-1113.222451,9.589e-05,2]
[347714814,1736077872266,-1501.17,9.589e-05,2]
[347714815,1736077872276,-500.0,9.589e-05,2]
[347714816,1736077872286,-6256.28,9.589e-05,2]
[347714817,1736077872296,-12614.89,9.589e-05,2]
[347714818,1736077872306,-1877.08,9.589e-05,2]
[347714819,1736077872315,-500.0,9.589e-05,2]
[347714820,1736077872325,-5948.84,9.589e-05,2]
[347714821,1736077872335,-500.0,9.589e-05,2]
[347714822,1736077872344,-1336.8,9.589e-05,2]
[347714823,1736077872353,-500.0,9.589e-05,2]
[347714824,1736077872363,-500.0,9.589e-05,2]
[347714825,1736077872372,-500.0,9.589e-05,2]
[347714826,1736077872381,-656.54,9.589e-05,2]
[347714827,1736077872391,-16452.68,9.589e-05,2]
[347714828,1736077872400,-500.0,9.589e-05,2]
[347714829,1736077872410,-656.81,9.589e-05,2]
[347714830,1736077872419,-1330.53,9.589e-05,2]
[347714831,1736077872429,-2520.72,9.589e-05,2]
[347714832,1736077872440,-500.0,9.589e-05,2]
[347714833,1736077872452,-500.0,9.589e-05,2]
[347714834,1736077872462,-579.66,9.589e-05,2]
[347714835,1736077872472,-500.0,9.589e-05,2]
[347714836,1736077872482,-500.0,9.589e-05,2]
[347714837,1736077872492,-1361.37,9.589e-05,2]
[347714838,1736077872501,-1152.65,9.589e-05,2]
[347714839,1736077872512,-500.0,9.589e-05,2]
[347714840,1736077872522,-1619.18,9.589e-05,2]
[347714841,1736077872531,-500.0,9.589e-05,2]
[347714842,1736077872541,-1628.83,9.589e-05,2]
[347714843,1736077872551,-1073.36,9.589e-05,2]
[347714844,1736077872561,-1774.99,9.589e-05,2]
[347714845,1736077872571,-205.55,9.589e-05,2]
[347714846,1736077872581,-779.56,9.589e-05,2]
[347714847,1736077872590,-2695.05,9.589e-05,2]
[347714848,1736077872600,-1125.17,9.589e-05,2]
[347714849,1736077872610,-763.52,9.589e-05,2]
[347714850,1736077872619,-2863.65,9.589e-05,2]
[347714851,1736077872629,-1594.61,9.589e-05,2]
[347714852,1736077872639,-1889.76,9.589e-05,2]
[347714853,1736077872649,-500.0,9.589e-05,2]
[347714854,1736077872659,-1696.48,9.589e-05,2]
[347714855,1736077872668,-500.0,9.589e-05,2]
[347714856,1736077872678,-500.0,9.589e-05,2]
[347714857,1736077872688,-500.0,9.589e-05,2]
[347714858,1736077872698,-2621.36,9.589e-05,2]
[347714859,1736077872707,-1366.06,9.589e-05,2]
[347714860,1736077872717,-259.4834298,9.589e-05,2]
[347714861,1736077872726,-1255.03,9.589e-05,2]
[347714862,1736077872735,-500.0,9.589e-05,2]
[347714863,1736077872745,-1597.01,9.589e-05,2]
[347714864,1736077872754,-501.17,9.589e-05,2]
[347714865,1736077872764,-500.0,9.589e-05,2]
[347714866,1736077872774,-4702.44,9.589e-05,2]
[347714867,1736077872784,-500.0,9.589e-05,2]
[347714868,1736077872794,-500.0,9.589e-05,2]
[347714869,1736077872804,-4016.18,9.589e-05,2]
[347714870,1736077872814,-1438.49,9.589e-05,2]
[347714871,1736077872824,-500.0,9.589e-05,2]
[347714872,1736077872834,-1134.87,9.589e-05,2]
[347714873,1736077872844,-500.0,9.589e-05,2]
[347714874,1736077872854,-1007.93,9.589e-05,2]
[347714875,1736077872865,-5853.8,9.589e-05,2]
[347714876,1736077872875,-500.0,9.589e-05,2]
[347714877,1736077872885,-1188.37,9.589e-05,2]
[347714878,1736077872894,-298.094105,9.589e-05,2]
[347714879,1736077872904,-799.75,9.589e-05,2]
[347714880,1736077872914,-1191.39,9.589e-05,2]
[347714881,1736077872925,-500.0,9.589e-05,2]
[347714882,1736077872935,-500.0,9.589e-05,2]
[347714883,1736077872945,-500.0,9.589e-05,2]
[347714884,1736077872955,-743.67,9.589e-05,2]
[347714885,1736077872964,-624.57,9.589e-05,2]
[347714886,1736077872974,-500.0,9.589e-05,2]
[347714887,1736077872985,-10885.06,9.589e-05,2]
[347714888,1736077872995,-8164.25,9.589e-05,2]
[347714889,1736077873005,-500.0,9.589e-05,2]
[347714890,1736077873015,-2029.13,9.589e-05,2]
[347714891,1736077873025,-500.0,9.589e-05,2]
[347714892,1736077873034,-826.38,9.589e-05,2]
[347714893,1736077873044,-1294.01,9.589e-05,2]
[347714894,1736077873053,-847.41,9.589e-05,2]
[347714895,1736077873063,-500.0,9.589e-05,2]
[347714896,1736077873073,-1922.04,9.589e-05,2]
[347714897,1736077873084,-4178.12,9.589e-05,2]
[347714898,1736077873094,-1674.94,9.589e-05,2]
[347714899,1736077873103,-282.754514,9.589e-05,2]
[347714900,1736077873114,-500.0,9.589e-05,2]
[347714901,1736077873124,-614.12,9.589e-05,2]
[347714902,1736077873134,-500.0,9.589e-05,2]
[347714903,1736077873145,-500.0,9.589e-05,2]
[347714904,1736077873154,-500.0,9.589e-05,2]
[347714905,1736077873164,-2015.35,9.589e-05,2]
[347714906,1736077873175,-11657.42,9.589e-05,2]
[347714907,1736077873185,-2860.37,9.589e-05,2]
[347714908,1736077873196,-776.51,9.589e-05,2]
[347714909,1736077873206,-500.0,9.589e-05,2]
[347714910,1736077873216,-1719.67,9.589e-05,2]
[347714911,1736077873226,-500.0,9.589e-05,2]
[347714912,1736077873236,-1055.64,9.589e-05,2]
[347714913,1736077873245,-500.0,9.589e-05,2]
[347714914,1736077873255,-4243.83,9.589e-05,2]
[347714915,1736077873265,-500.0,9.589e-05,2]
[347714916,1736077873276,-6577.83,9.589e-05,2]
[347714917,1736077873286,-496.01,9.589e-05,2]
[347714918,1736077873296,-1904.42,9.589e-05,2]
[347714919,1736077873306,-712.42,9.589e-05,2]
[347714920,1736077873649,-404.56,9.589e-05,2]
[347714921,1736077873673,-4673.99,9.589e-05,2]
[347714922,1736077873683,-813.11,9.589e-05,2]
[347714923,1736077873692,-7032.4,9.589e-05,2]
[347714924,1736077873702,-911.49,9.589e-05,2]
[347714925,1736077873712,-4504.93,9.589e-05,2]
[347714926,1736077873721,-500.0,9.589e-05,2]
[347714927,1736077873731,-1698.03,9.589e-05,2]
[347714928,1736077873740,-1145.98,9.589e-05,2]
[347714929,1736077873750,-500.0,9.589e-05,2]
[347714930,1736077873759,-710.05,9.589e-05,2]
[347714931,1736077873769,-773.58,9.589e-05,2]
[347714932,1736077873779,-892.05,9.589e-05,2]
[347714933,1736077873789,-500.0,9.589e-05,2]
[347714934,1736077873798,-500.0,9.589e-05,2]
[347714935,1736077873808,-500.0,9.589e-05,2]
[347714936,1736077873818,-1151.78,9.589e-05,2]
[347714937,1736077873828,-1067.33,9.589e-05,2]
[347714938,1736077873838,-2458.64,9.589e-05,2]
[347714939,1736077873849,-1454.12,9.589e-05,2]
[347714940,1736077873859,-1718.34,9.589e-05,2]
[347714941,1736077873869,-851.29,9.589e-05,2]
[347714942,1736077873879,-3036.51,9.589e-05,2]
[347714943,1736077873888,-3993.07,9.589e-05,2]
[347714944,1736077873898,-500.0,9.589e-05,2]
[347714945,1736077873908,-500.0,9.589e-05,2]
[347714946,1736077873917,-513.47,9.589e-05,2]
[347714947,1736077873927,-2096.82,9.589e-05,2]
[347714948,1736077873937,-1089.35,9.589e-05,2]
[347714949,1736077873947,-500.0,9.589e-05,2]
[347714950,1736077873957,-892.7,9.589e-05,2]
[347714951,1736077873967,-1286.37,9.589e-05,2]
[347714952,1736077873976,-500.0,9.589e-05,2]
[347714953,1736077873986,-858.47,9.589e-05,2]
[347714954,1736077873995,-500.0,9.589e-05,2]
[347714955,1736077874005,-324.88,9.589e-05,2]
[347714956,1736077874014,-1127.93,9.589e-05,2]
[347714957,1736077874024,-1752.2,9.589e-05,2]
[347714958,1736077874034,-1122.56,9.589e-05,2]
[347714959,1736077874043,-2522.13,9.589e-05,2]
[347714960,1736077874054,-1826.18,9.589e-05,2]
[347714961,1736077874068,-960.74,9.589e-05,2]
[347714962,1736077874089,-691.4,9.589e-05,2]
[347714963,1736077874103,-500.0,9.589e-05,2]
[347714964,1736077874113,-1666.61,9.589e-05,2]
[347714965,1736077874122,-1167.04,9.589e-05,2]
[347714966,1736077874131,-991.36,9.589e-05,2]
[347714967,1736077874141,-929.99,9.589e-05,2]
[347714968,1736077874151,-60442.75,9.589e-05,2]
[347714969,1736077874161,-2300.0,9.59e-05,2]
[347714970,1736077874170,-5310.519,9.618e-05,2]
[347714971,1736077874180,-176.817,9.618e-05,2]
[347714972,1736077874190,-2014.0,9.622e-05,2]
[347714973,1736077874199,-1267.0,9.622e-05,2]
[347714974,1736077874210,-150.0,9.622e-05,2]
[347714975,1736077874220,-634.0,9.622e-05,2]
[347714976,1736077874230,-566.0,9.622e-05,2]
[347714977,1736077874240,-1860.0,9.622e-05,2]
[347714978,1736077874249,-1258.0,9.622e-05,2]
[347714979,1736077874259,-3775.0,9.622e-05,2]
[347714980,1736077874269,-819.0,9.622e-05,2]
[347714981,1736077874280,-918.0,9.622e-05,2]
[347714982,1736077874290,-3722.0,9.622e-05,2]
[347714983,1736077874300,-537.0,9.622e-05,2]
[347714984,1736077874311,-3893.0,9.622e-05,2]
[347714985,1736077874321,-250.0,9.622e-05,2]
[347714986,1736077874330,-150.636,9.622e-05,2]
[347714987,1736077874339,-9616.0,9.622e-05,2]
[347714988,1736077874350,-1173.0,9.622e-05,2]
[347714989,1736077874360,-150.0,9.622e-05,2]
[347714990,1736077874369,-429.51484354,9.625e-05,2]
[347714991,1736077874380,-1057.0,9.675e-05,2]
[347714992,1736077874391,-500.0,9.709e-05,2]
[347714993,1736077874402,-311.0,9.722e-05,2]
[347714994,1736077874412,-300.33,9.836e-05,2]
[347714995,1736077874423,-150.0,9.836e-05,2]
[347714996,1736077874436,-197.35,9.836e-05,2]
[347714997,1736077874446,-979.19,9.836e-05,2]
[347714998,1736077874455,-151.63,9.836e-05,2]
[347714999,1736077874465,-151.44,9.836e-05,2]
[347715000,1736077874474,-150.0,9.836e-05,2]
[347715001,1736077874483,-182.86,9.836e-05,2]
[347715002,1736077874492,-979.19,9.836e-05,2]
[347715003,1736077874502,-150.0,9.836e-05,2]
[347715004,1736077874512,-150.0,9.836e-05,2]
[347715005,1736077874521,-150.0,9.836e-05,2]
[347715006,1736077874531,-150.0,9.836e-05,2]
[347715007,1736077874541,-150.0,9.836e-05,2]
[347715008,1736077874551,-182.86,9.836e-05,2]
[347715009,1736077874560,-436.94,9.836e-05,2]
[347715010,1736077874572,-150.0,9.836e-05,2]
[347715011,1736077874582,-979.19,9.836e-05,2]
[347715012,1736077874593,-979.19,9.836e-05,2]
[347715013,1736077874603,-436.94,9.836e-05,2]
[347715014,1736077874612,-150.0,9.836e-05,2]
[347715015,1736077874622,-150.0,9.836e-05,2]
[347715016,1736077874632,-181.8,9.836e-05,2]
[347715017,1736077874642,-436.94,9.836e-05,2]
[347715018,1736077874651,-850.16,9.836e-05,2]
[347715019,1736077874660,-151.07,9.836e-05,2]
[347715020,1736077874670,-357.26,9.836e-05,2]
[347715021,1736077874680,-436.94,9.836e-05,2]
[347715022,1736077874690,-592.88,9.836e-05,2]
[347715023,1736077874699,-436.86,9.836e-05,2]
[347715024,1736077874708,-500.0,9.846e-05,2]
[347715025,1736077874718,-1896.22,9.862e-05,2]
[347715026,1736077874727,-1465.16,9.862e-05,2]
[347715027,1736077874736,-2361.91,9.863e-05,2]
[347715028,1736077874745,-1674.92,9.863e-05,2]
[347715029,1736077874755,-500.0,9.863e-05,2]
[347715030,1736077874764,-1621.98,9.863e-05,2]
[347715031,1736077874773,-500.0,9.863e-05,2]
[347715032,1736077874783,-500.0,9.863e-05,2]
[347715033,1736077874792,-500.0,9.863e-05,2]
[347715034,1736077874801,-500.0,9.863e-05,2]
[347715035,1736077874810,-500.0,9.863e-05,2]
[347715036,1736077874819,-500.0,9.863e-05,2]
[347715037,1736077874829,-3386.48,9.863e-05,2]
[347715038,1736077874838,-500.0,9.863e-05,2]
[347715039,1736077874847,-503.47,9.863e-05,2]
[347715040,1736077874857,-500.0,9.863e-05,2]
[347715041,1736077874866,-500.0,9.863e-05,2]
[347715042,1736077874875,-4493.65,9.863e-05,2]
[347715043,1736077874885,-655.26,9.863e-05,2]
[347715044,1736077874895,-505.26,9.863e-05,2]
[347715045,1736077874905,-479.69,9.863e-05,2]
[347715046,1736077874915,-500.0,9.863e-05,2]
[347715047,1736077874925,-500.0,9.863e-05,2]
[347715048,1736077874935,-3455.18,9.863e-05,2]
[347715049,1736077874944,-500.0,9.863e-05,2]
[347715050,1736077874954,-500.0,9.863e-05,2]
[347715051,1736077874965,-500.0,9.863e-05,2]
[347715052,1736077874976,-500.0,9.863e-05,2]
[347715053,1736077874986,-263.99,9.863e-05,2]
[347715054,1736077874995,-500.0,9.863e-05,2]
[347715055,1736077875005,-500.0,9.863e-05,2]
[347715056,1736077875015,-503.65,9.863e-05,2]
[347715057,1736077875025,-500.0,9.863e-05,2]
[347715058,1736077875034,-2093.91,9.863e-05,2]
[347715059,1736077875043,-535.39,9.863e-05,2]
[347715060,1736077875053,-500.0,9.863e-05,2]
[347715061,1736077875062,-510.02,9.863e-05,2]
[347715062,1736077875071,-500.0,9.863e-05,2]
[347715063,1736077875080,-500.0,9.863e-05,2]
[347715064,1736077875090,-4909.36,9.863e-05,2]
[347715065,1736077875099,-500.0,9.863e-05,2]
[347715066,1736077875108,-768.45,9.863e-05,2]
[347715067,1736077875118,-500.0,9.863e-05,2]
[347715068,1736077875127,-501.86,9.863e-05,2]
[347715069,1736077875137,-660.06,9.863e-05,2]
[347715070,1736077875147,-500.0,9.863e-05,2]
[347715071,1736077875156,-1439.68,9.863e-05,2]
[347715072,1736077875166,-597.85,9.863e-05,2]
[347715073,1736077875175,-500.0,9.863e-05,2]
[347715074,1736077875184,-484.6,9.863e-05,2]
[347715075,1736077875194,-1447.38,9.863e-05,2]
[347715076,1736077875203,-500.0,9.863e-05,2]
[347715077,1736077875212,-543.53,9.863e-05,2]
[347715078,1736077875222,-617.4,9.863e-05,2]
[347715079,1736077875231,-500.0,9.863e-05,2]
[347715080,1736077875240,-890.36,9.863e-05,2]
[347715081,1736077875249,-500.0,9.863e-05,2]
[347715082,1736077875258,-897.02,9.863e-05,2]
[347715083,1736077875268,-500.0,9.863e-05,2]
[347715084,1736077875278,-500.0,9.863e-05,2]
[347715085,1736077875287,-514.55,9.863e-05,2]
[347715086,1736077875296,-713.57,9.863e-05,2]
[347715087,1736077875305,-500.0,9.863e-05,2]
[347715088,1736077875314,-606.82,9.863e-05,2]
[347715089,1736077875324,-500.0,9.863e-05,2]
[347715090,1736077875333,-295.62,9.863e-05,2]
[347715091,1736077875342,-757.44,9.863e-05,2]
[347715092,1736077875352,-500.0,9.863e-05,2]
[347715093,1736077875361,-1184.81,9.863e-05,2]
[347715094,1736077875370,-500.0,9.863e-05,2]
[347715095,1736077875379,-500.0,9.863e-05,2]
[347715096,1736077875390,-722.49,9.863e-05,2]
[347715097,1736077875400,-500.0,9.863e-05,2]
[347715098,1736077875410,-1641.6,9.863e-05,2]
[347715099,1736077875420,-758.18,9.863e-05,2]
[347715100,1736077875430,-564.09,9.863e-05,2]
[347715101,1736077875440,-2326.73,9.863e-05,2]
[347715102,1736077875450,-874.81,9.863e-05,2]
[347715103,1736077875459,-500.0,9.863e-05,2]
[347715104,1736077875472,-1289.57,9.863e-05,2]
[347715105,1736077875483,-603.7,9.863e-05,2]
[347715106,1736077875494,-1135.34,9.863e-05,2]
[347715107,1736077875503,-916.01,9.863e-05,2]
[347715108,1736077875513,-583.76,9.863e-05,2]
[347715109,1736077875523,-500.0,9.863e-05,2]
[347715110,1736077875532,-551.11,9.863e-05,2]
[347715111,1736077875543,-1685.45,9.863e-05,2]
[347715112,1736077875553,-1340.17,9.863e-05,2]
[347715113,1736077875566,-582.22,9.863e-05,2]
[347715114,1736077875575,-2464.65,9.863e-05,2]
[347715115,1736077875585,-900.6,9.863e-05,2]
[347715116,1736077875595,-1329.92,9.863e-05,2]
[347715117,1736077875605,-786.78,9.863e-05,2]
[347715118,1736077875615,-743.02,9.863e-05,2]
[347715119,1736077875624,-1147.49,9.863e-05,2]
[347715120,1736077875635,-500.0,9.863e-05,2]
[347715121,1736077875645,-690.8,9.863e-05,2]
[347715122,1736077875654,-500.0,9.863e-05,2]
[347715123,1736077875663,-597.29,9.863e-05,2]
[347715124,1736077875673,-527.65,9.863e-05,2]
[347715125,1736077875683,-657.19,9.863e-05,2]
[347715126,1736077875692,-500.0,9.863e-05,2]
[347715127,1736077875702,-713.19,9.863e-05,2]
[347715128,1736077875711,-1630.28,9.863e-05,2]
[347715129,1736077875721,-865.01,9.863e-05,2]
[347715130,1736077875731,-560.06,9.863e-05,2]
[347715131,1736077875741,-656.48,9.863e-05,2]
[347715132,1736077875751,-500.0,9.863e-05,2]
[347715133,1736077875760,-799.98,9.863e-05,2]
[347715134,1736077875770,-1370.84,9.863e-05,2]
[347715135,1736077875779,-500.0,9.863e-05,2]
[347715136,1736077875789,-720.23,9.863e-05,2]
[347715137,1736077875798,-1174.05,9.863e-05,2]
[347715138,1736077875808,-535.83,9.863e-05,2]
[347715139,1736077875818,-500.0,9.863e-05,2]
[347715140,1736077875828,-1100.99,9.863e-05,2]
[347715141,1736077875837,-742.07,9.863e-05,2]
[347715142,1736077875849,-846.77,9.863e-05,2]
[347715143,1736077875858,-1559.95,9.863e-05,2]
[347715144,1736077875869,-788.73,9.863e-05,2]
[347715145,1736077875878,-500.0,9.863e-05,2]
[347715146,1736077875888,-1389.11,9.863e-05,2]
[347715147,1736077875898,-2013.48,9.863e-05,2]
[347715148,1736077875909,-500.0,9.863e-05,2]
[347715149,1736077875919,-500.0,9.863e-05,2]
[347715150,1736077875928,-2906.9,9.863e-05,2]
[347715151,1736077875938,-500.0,9.863e-05,2]
[347715152,1736077875947,-1498.5,9.863e-05,2]
[347715153,1736077875957,-699.23,9.863e-05,2]
[347715154,1736077875967,-1506.83,9.863e-05,2]
[347715155,1736077875976,-770.93,9.863e-05,2]
[347715156,1736077875986,-1218.28,9.863e-05,2]
[347715157,1736077876067,-1089.33,9.863e-05,2]
[347715158,1736077876077,-500.0,9.863e-05,2]
[347715159,1736077876086,-500.0,9.863e-05,2]
[347715160,1736077876096,-820.66,9.863e-05,2]
[347715161,1736077876106,-632.38,9.863e-05,2]
[347715162,1736077876116,-500.0,9.863e-05,2]
[347715163,1736077876126,-686.96,9.863e-05,2]
[347715164,1736077876135,-978.19,9.863e-05,2]
[347715165,1736077876144,-890.17,9.863e-05,2]
[347715166,1736077876154,-500.0,9.863e-05,2]
[347715167,1736077876162,-558.3,9.863e-05,2]
[347715168,1736077876171,-500.0,9.863e-05,2]
[347715169,1736077876181,-744.13,9.863e-05,2]
[347715170,1736077876191,-500.0,9.863e-05,2]
[347715171,1736077876200,-930.54,9.863e-05,2]
[347715172,1736077876210,-2315.0,9.863e-05,2]
[347715173,1736077876219,-721.43,9.863e-05,2]
[347715174,1736077876228,-500.0,9.863e-05,2]
[347715175,1736077876237,-1252.67,9.863e-05,2]
[347715176,1736077876246,-500.0,9.863e-05,2]
[347715177,1736077876255,-291.29,9.863e-05,2]
[347715178,1736077876265,-774.57,9.863e-05,2]
[347715179,1736077876275,-2913.28,9.863e-05,2]
[347715180,1736077876284,-897.91,9.863e-05,2]
[347715181,1736077876294,-2177.81,9.863e-05,2]
[347715182,1736077876303,-511.93,9.863e-05,2]
[347715183,1736077876312,-2171.65,9.863e-05,2]
[347715184,1736077876321,-500.0,9.863e-05,2]
[347715185,1736077876330,-2317.89,9.863e-05,2]
[347715186,1736077876339,-867.55,9.863e-05,2]
[347715187,1736077876348,-527.01,9.863e-05,2]
[347715188,1736077876357,-803.4,9.863e-05,2]
[347715189,1736077876367,-1302.69,9.863e-05,2]
[347715190,1736077876377,-1086.66,9.863e-05,2]
[347715191,1736077876386,-749.15,9.863e-05,2]
[347715192,1736077876395,-565.13,9.863e-05,2]
[347715193,1736077876404,-856.06,9.863e-05,2]
[347715194,1736077876413,-1986.45,9.863e-05,2]
[347715195,1736077876423,-623.49,9.863e-05,2]
[347715196,1736077876432,-2363.84,9.863e-05,2]
[347715197,1736077876441,-764.85,9.863e-05,2]
[347715198,1736077876450,-727.71,9.863e-05,2]
[347715199,1736077876459,-1852.11,9.863e-05,2]
[347715200,1736077876472,-584.32,9.863e-05,2]
[347715201,1736077876481,-640.46,9.863e-05,2]
[347715202,1736077876490,-1550.64,9.863e-05,2]
[347715203,1736077876499,-1783.14,9.863e-05,2]
[347715204,1736077876508,-531.36,9.863e-05,2]
[347715205,1736077876517,-1213.26,9.863e-05,2]
[347715206,1736077876527,-500.0,9.863e-05,2]
[347715207,1736077876537,-500.0,9.863e-05,2]
[347715208,1736077876547,-1908.11,9.863e-05,2]
[347715209,1736077876556,-500.0,9.863e-05,2]
[347715210,1736077876566,-641.67,9.863e-05,2]
[347715211,1736077876575,-3065.63,9.863e-05,2]
[347715212,1736077876584,-295.5,9.863e-05,2]
[347715213,1736077876594,-1070.96,9.863e-05,2]
[347715214,1736077876603,-3640.86,9.863e-05,2]
[347715215,1736077876612,-500.0,9.863e-05,2]
[347715216,1736077876621,-500.0,9.863e-05,2]
[347715217,1736077876631,-578.08,9.863e-05,2]
[347715218,1736077876640,-1399.43,9.863e-05,2]
[347715219,1736077876650,-500.0,9.863e-05,2]
[347715220,1736077876659,-633.16,9.863e-05,2]
[347715221,1736077876668,-500.0,9.863e-05,2]
[347715222,1736077876678,-500.0,9.863e-05,2]
[347715223,1736077876687,-500.0,9.863e-05,2]
[347715224,1736077876699,-519.71,9.863e-05,2]
[347715225,1736077876709,-500.0,9.863e-05,2]
[347715226,1736077876718,-500.0,9.863e-05,2]
[347715227,1736077876727,-732.34,9.863e-05,2]
[347715228,1736077876736,-707.82,9.863e-05,2]
[347715229,1736077876745,-740.06,9.863e-05,2]